bitfinex-derivatives/quotes_ETHF0:USTF0_20250612
["timestamp","ask_amount","ask_price","bid_price","bid_amount"]
[1749698377079,1.9015,2758.7,2758.6,25.13910055]
[1749698378161,1.9015,2758.7,2758.6,24.41423055]
[1749698378761,1.9015,2758.7,2758.6,25.13910055]
[1749698379566,0.6258,2758.7,2758.6,25.13910055]
[1749698380063,0.5436,2758.9,2758.6,29.41423055]
[1749698380264,0.5436,2758.9,2758.8,0.72482]
[1749698380465,0.5436,2758.9,2758.6,3.93809055]
[1749698380768,1.26841,2758.9,2758.8,21.198]
[1749698381164,1.26841,2758.9,2758.6,3.21323055]
[1749698381165,0.72483,2758.8,2758.6,3.21323055]
[1749698381357,0.5436,2758.9,2758.7,21.197]
[1749698381562,2.17472263,2758.8,2758.7,21.197]
[1749698381868,0.72485,2758.7,2758.6,3.21323055]
[1749698382169,0.72485,2758.7,2758.6,24.41023055]
[1749698382769,0.72484,2758.8,2758.6,25.13510055]
[1749698382969,0.72485,2758.7,2758.6,24.41023055]
[1749698383763,0.72485,2758.7,2758.6,24.40923055]
[1749698384164,0.72485,2758.7,2758.6,0.00543055]
[1749698384372,0.72485,2758.7,2758.6,21.20043055]
[1749698384373,2.17484814,2758.7,2758.6,21.20043055]
[1749698384664,2.17484814,2758.7,2758.6,16.79443055]
[1749698386764,2.17484814,2758.7,2758.6,17.51930055]
[1749698386971,0.72485,2758.7,2758.6,17.51930055]
[1749698387769,0.72485,2758.7,2758.6,16.79443055]
[1749698387971,0.72485,2758.7,2758.6,17.51930055]
[1749698388974,0.72482,2758.8,2758.7,0.72482]
[1749698389272,2.17477072,2758.8,2758.7,0.72482]
[1749698389473,0.72485,2758.7,2758.6,17.51928055]
[1749698391270,0.72485,2758.7,2758.6,16.79443055]
[1749698391778,2.17476194,2758.7,2758.6,16.79443055]
[1749698392274,2.17476517,2758.7,2758.6,16.79443055]
[1749698392577,2.17476517,2758.7,2758.6,17.51930055]
[1749698392767,2.17476517,2758.7,2758.6,0.00543055]
[1749698392970,2.17476517,2758.7,2758.6,21.19343055]
[1749698393467,1.44991517,2758.7,2758.6,21.91830055]
[1749698396075,2.17476517,2758.7,2758.6,21.91830055]
[1749698396872,1.44991517,2758.7,2758.6,21.91830055]
[1749698398376,1.44991517,2758.7,2758.6,25.12610055]
[1749698400875,2.17476517,2758.7,2758.6,25.12610055]
[1749698401372,2.17476517,2758.7,2758.6,4.40643055]
[1749698401583,2.1748001,2758.7,2758.6,21.19043055]
[1749698401770,3.3547001,2758.7,2758.6,21.19043055]
[1749698404884,3.3547001,2758.7,2758.6,0.00543055]
[1749698405089,0.725,2758.1,2758.0,3.2078]
[1749698405289,2.1749501,2758.1,2758.0,24.3918]
[1749698406098,1.4499501,2758.1,2758.0,25.11683]
[1749698406294,2.1749501,2758.1,2758.0,24.3918]
[1749698406484,2.1749501,2758.1,2758.0,25.11683]
[1749698406485,1.4499501,2758.1,2758.0,25.11683]
[1749698406896,2.1749501,2758.1,2758.0,25.11683]
[1749698407085,2.1749501,2758.1,2758.0,24.3918]
[1749698407488,1.4499501,2758.1,2757.8,21.93]
[1749698407686,4.0789801,2758.0,2757.9,4.401]
[1749698407885,0.72512,2757.7,2757.6,0.72513]
[1749698408090,2.1750701,2757.7,2757.6,21.184]
[1749698408289,2.1750701,2757.7,2757.6,4.401]
[1749698408489,2.1750701,2757.7,2757.6,21.184]
[1749698408694,1.4499501,2757.7,2757.6,21.90913]
[1749698408998,2.1750601,2757.7,2757.6,21.184]
[1749698409397,1.4499501,2757.7,2757.6,21.184]
[1749698409891,1.4499501,2757.7,2757.6,21.90913]
[1749698410294,2.1750601,2757.7,2757.6,21.184]
[1749698410596,1.4499501,2757.7,2757.6,21.184]
[1749698411095,1.4499501,2757.7,2757.6,21.90913]
[1749698411293,10.3828601,2757.7,2756.6,3.2078]
[1749698411497,0.72557,2756.0,2755.4,0.7257]
[1749698411691,0.72571,2755.5,2755.2,3.2078]
[1749698411894,3.2078,2755.6,2754.8,4.4758]
[1749698412092,1.2043,2755.4,2754.8,3.2078]
[1749698412600,3.2078,2755.0,2754.7,0.00966533]
[1749698412801,0.72587,2754.8,2754.7,0.00966533]
[1749698412997,2.17796929,2754.8,2754.7,0.00966533]
[1749698413195,6.45209929,2754.8,2753.8,0.0631728]
[1749698413500,3.2078,2753.9,2753.2,3.93409]
[1749698413700,3.2078,2754.3,2753.4,3.2078]
[1749698413896,0.72616,2753.7,2753.3,25.8251876]
[1749698414197,3.2078,2753.6,2753.3,25.769]
[1749698414398,3.2078,2753.6,2753.3,6.048]
[1749698414793,1.45297537,2753.5,2752.6,26.301]
[1749698414993,3.2078,2752.8,2752.6,26.301]
[1749698415302,0.00544178,2753.3,2752.7,3.2078]
[1749698415494,0.72629,2753.2,2752.6,6.292]
[1749698415703,1.97821178,2753.3,2752.7,20.093]
[1749698415896,0.00544178,2753.3,2752.8,3.2078]
[1749698417101,0.00544178,2753.3,2753.1,3.2078]
[1749698417296,45.5498,2753.2,2750.8,3.2078]
[1749698417494,3.2078,2750.9,2749.1,3.2078]
[1749698417699,3.2078,2750.9,2748.6,9.864]
[1749698417700,3.2078,2749.4,2748.9,0.72742]
[1749698417894,0.51189738,2749.4,2749.2,0.80008843]
[1749698418098,0.00545167,2750.3,2749.5,0.06327255]
[1749698418299,3.2078,2749.8,2749.6,0.07273785]
[1749698418497,1.45474835,2749.7,2749.0,7.057]
[1749698418804,3.2078,2749.1,2749.0,7.057]
[1749698419001,3.2078,2749.1,2749.0,6.8753166]
[1749698419206,4.66279085,2749.1,2749.0,6.8753166]
[1749698419599,4.66279085,2749.1,2749.0,12.6027166]
[1749698419794,3.2078,2749.5,2748.7,21.425]
[1749698420105,1.45476733,2749.4,2749.3,0.72732]
[1749698420602,0.5455,2749.5,2749.4,0.7273]
[1749698420804,0.004,2749.6,2749.5,0.72727]
[1749698421001,3.2078,2749.9,2749.8,0.72719]
[1749698421407,3.2078,2750.2,2749.3,24.8968]
[1749698422000,3.2078,2749.9,2749.3,21.689]
[1749698422503,3.2078,2749.4,2747.9,3.2078]
[1749698422807,3.2078,2749.7,2748.8,3.2078]
[1749698423101,3.2078,2748.9,2748.3,0.72756]
[1749698423299,3.2078,2749.0,2748.4,30.509]
[1749698423608,3.2078,2749.0,2748.4,0.72756]
[1749698423908,3.2078,2749.0,2748.3,0.72759]
[1749698424105,3.2078,2749.0,2748.2,3.2078]
[1749698424805,3.2078,2749.0,2748.3,8.28]
[1749698425105,3.2078,2749.0,2747.8,3.2078]
[1749698425406,0.00545167,2748.7,2747.8,3.2078]
[1749698425598,3.2078,2748.5,2747.5,3.2078]
[1749698425799,3.2078,2748.2,2747.6,22.996]
[1749698425999,3.21325167,2748.7,2747.8,3.2078]
[1749698426200,3.21325167,2748.7,2747.9,9.8312]
[1749698426406,3.21325167,2748.7,2748.6,0.72751]
[1749698426608,0.00545167,2748.7,2748.6,54.34251]
[1749698427206,3.2078,2749.7,2748.6,58.615]
[1749698427510,3.2078,2749.7,2749.0,3.2078]
[1749698427802,3.2078,2749.7,2749.4,0.72728]
[1749698428008,3.2078,2749.7,2749.5,8.531]
[1749698428210,0.00545167,2749.9,2749.5,8.531]
[1749698428404,0.00545167,2749.9,2749.6,1.3002]
[1749698428599,0.00545167,2749.9,2749.6,2.02743]
[1749698428808,3.2078,2749.7,2749.5,8.531]
[1749698429006,3.2078,2749.7,2749.6,23.197]
[1749698429310,0.00545167,2749.9,2749.6,23.197]
[1749698429512,0.00545167,2749.9,2749.6,24.4428]
[1749698429811,0.00545167,2749.9,2749.8,0.72719]
[1749698430010,0.00545167,2749.9,2749.7,23.2288]
[1749698430208,3.2078,2749.8,2749.7,23.95601]
[1749698430510,0.00545167,2749.9,2749.8,0.72719]
[1749698430711,0.00545167,2749.9,2749.8,1.97299]
[1749698431102,0.00545167,2749.9,2749.8,0.72719]
[1749698431312,0.00545167,2749.9,2749.8,32.34719]
[1749698431824,0.00545167,2749.9,2749.8,32.34619]
[1749698432706,3.21325167,2749.9,2749.7,21.983]
[1749698433412,3.21325167,2749.9,2749.8,0.72719]
[1749698433611,3.21325167,2749.9,2749.8,23.73519]
[1749698433916,3.21325167,2749.9,2749.8,32.25019]
[1749698434713,3.21325167,2749.9,2749.8,31.5]
[1749698435013,3.21325167,2749.9,2749.7,21.983]
[1749698435210,3.21325167,2749.9,2749.8,32.18519]
[1749698435614,3.21325167,2749.9,2749.8,33.47389]
[1749698435915,1.2707,2750.7,2749.8,33.47389]
[1749698435916,3.2078,2750.4,2750.3,0.72704]
[1749698436108,3.2078,2750.4,2750.3,22.896]
[1749698436310,3.2078,2750.4,2750.3,23.62306]
[1749698436914,0.00545167,2750.6,2750.5,0.72701]
[1749698437217,0.00545167,2750.6,2750.5,8.534]
[1749698437418,0.00545167,2750.6,2750.5,9.26101]
[1749698437709,0.00545167,2750.6,2750.5,8.534]
[1749698438208,0.00545167,2750.6,2750.1,3.2078]
[1749698438609,0.00545167,2750.6,2750.0,31.053]
[1749698438610,3.2078,2750.2,2750.0,31.053]
[1749698438802,1.2229,2750.1,2750.0,31.053]
[1749698439010,0.72702,2750.5,2750.0,31.053]
[1749698439011,3.2078,2750.5,2750.0,31.053]
[1749698439308,3.2078,2750.5,2750.4,0.72703]
[1749698439508,3.2078,2750.5,2750.4,23.47503]
[1749698439907,3.2078,2750.5,2750.1,4.5087]
[1749698440111,3.2078,2750.5,2750.4,31.75703]
[1749698440408,3.2078,2750.5,2750.4,31.006]
[1749698440911,3.2078,2750.5,2750.4,30.968]
[1749698441409,3.2078,2750.5,2749.8,44.0078]
[1749698441614,3.2078,2750.2,2749.9,30.94]
[1749698441814,3.2078,2750.5,2750.0,0.72712]
[1749698442011,3.93483,2750.5,2749.9,8.296]
[1749698442205,3.2078,2750.5,2750.0,22.623]
[1749698442413,3.2078,2750.1,2749.7,21.983]
[1749698442704,3.2078,2750.1,2747.5,7.10353229]
[1749698442705,0.7273,2749.4,2748.7,8.296]
[1749698442905,3.2078,2749.4,2748.8,22.595]
[1749698443111,3.2078,2749.4,2748.8,25.8028]
[1749698443314,3.2078,2749.4,2749.3,23.32678167]
[1749698443511,3.93498,2749.9,2749.3,22.59945167]
[1749698443815,1.45431898,2749.8,2749.4,8.297]
[1749698444018,6.28907561,2749.7,2749.6,0.72725]
[1749698444718,1.45431898,2749.7,2749.6,0.72725]
[1749698445219,1.45431898,2749.7,2749.6,5.72725]
[1749698445414,1.45431898,2749.7,2749.6,0.72725]
[1749698445825,1.45431898,2749.7,2749.6,31.50825]
[1749698446113,1.45431898,2749.7,2749.6,8.056]
[1749698446319,1.45431898,2749.7,2749.6,30.54]
[1749698447220,1.45431898,2749.7,2749.4,0.73274167]
[1749698447421,4.83475663,2749.8,2749.6,30.501]
[1749698447614,1.45469247,2749.7,2749.6,3.93505]
[1749698447814,4.66249247,2749.7,2749.4,0.00545167]
[1749698448121,1.45469247,2749.6,2749.5,8.055]
[1749698448417,0.72727,2749.5,2749.4,22.39645167]
[1749698448620,1.45469247,2749.5,2749.4,22.39645167]
[1749698448817,1.45469247,2749.5,2749.4,23.12375167]
[1749698449125,1.45469247,2749.5,2749.4,30.43645167]
[1749698449326,6.43890163,2749.5,2749.4,31.16375167]
[1749698449718,1.45469247,2749.5,2749.4,31.14575167]
[1749698450120,3.56056935,2749.9,2749.8,0.72719]
[1749698450420,3.56056935,2750.3,2750.2,0.72709]
[1749698450620,3.56056935,2750.3,2749.8,44.0078]
[1749698450821,3.56056935,2750.3,2750.2,8.78309]
[1749698451021,3.56056935,2750.3,2750.2,0.72709]
[1749698451320,3.56056935,2750.3,2750.2,31.08109]
[1749698451720,3.56056935,2750.3,2750.2,26.71821615]
[1749698451926,3.2078,2750.5,2750.3,0.72704]
[1749698452220,3.2078,2750.5,2750.3,0.72705]
[1749698452421,3.2078,2750.5,2749.9,3.2078]
[1749698452624,3.2078,2750.0,2749.9,0.72716]
[1749698452818,3.56086754,2750.0,2749.9,31.02217]
[1749698453023,3.56086754,2750.0,2749.9,0.72717]
[1749698453224,0.72717,2749.9,2749.8,8.056]
[1749698453519,0.72723,2749.7,2749.4,0.00545167]
[1749698453719,3.2078,2749.7,2749.2,8.056]
[1749698453926,3.93513,2749.3,2749.2,8.056]
[1749698454322,0.72726,2749.6,2749.2,8.056]
[1749698454623,3.2078,2749.6,2749.3,22.183]
[1749698454926,3.2078,2749.6,2749.5,0.72727]
[1749698455620,1.2131,2749.9,2749.5,29.948]
[1749698455621,0.72723,2749.7,2749.5,29.948]
[1749698455831,3.2078,2749.6,2748.7,40.8]
[1749698456023,3.93514,2749.3,2749.1,7.816]
[1749698456326,0.72736,2749.2,2749.0,7.816]
[1749698456526,1.91356,2749.2,2749.1,22.108]
[1749698457026,1.1862,2749.2,2749.1,22.108]
[1749698457232,1.91355,2749.2,2749.1,22.108]
[1749698457528,1.1862,2749.2,2749.1,22.108]
[1749698457723,1.91355,2749.2,2749.1,22.108]
[1749698457922,0.72738,2749.1,2749.0,7.816]
[1749698458125,3.2078,2749.3,2749.1,0.72738]
[1749698458427,3.93515,2749.3,2749.0,29.913]
[1749698458629,3.93506,2749.6,2749.4,0.72729]
[1749698458826,3.2078,2749.6,2749.5,22.74827]
[1749698459428,3.2078,2750.1,2749.5,29.824]
[1749698459622,0.72731,2749.4,2749.0,3.2078]
[1749698459827,3.93514,2749.3,2748.7,1.2417]
[1749698460025,3.2078,2749.6,2748.7,1.2417]
[1749698460232,3.2078,2749.6,2749.0,0.72739]
[1749698460529,1.2079,2749.5,2748.8,0.72743]
[1749698460830,0.72741,2749.0,2748.9,7.817]
[1749698461022,0.72743,2748.9,2748.6,3.9353]
[1749698461219,0.72746,2748.8,2748.7,29.752]
[1749698461530,0.00545167,2749.2,2749.1,0.72738]
[1749698461727,0.00545167,2749.2,2749.1,22.66238]
[1749698461923,4.4157,2749.9,2749.1,26.935]
[1749698462231,3.2078,2749.9,2749.8,0.72719]
[1749698462433,4.27757778,2749.9,2749.8,30.44819]
[1749698462726,4.27757778,2749.9,2749.4,21.997]
[1749698462926,1.06977778,2749.8,2749.5,22.60726]
[1749698463129,2.28747778,2749.7,2749.6,0.72725]
[1749698463432,1.06977778,2749.7,2749.6,0.72725]
[1749698463725,1.06977778,2749.7,2749.4,22.00245167]
[1749698463925,1.06977778,2749.7,2749.5,29.673]
[1749698463926,1.06977778,2749.6,2749.5,29.673]
[1749698464328,1.06977778,2749.6,2749.5,70.473]
[1749698464534,1.06977778,2749.6,2749.5,70.449]
[1749698464735,1.06977778,2749.6,2749.5,71.17627]
[1749698465128,1.06977778,2749.6,2749.5,70.449]
[1749698465528,1.06977778,2749.6,2749.5,71.17627]
[1749698465932,1.06977778,2749.6,2749.5,70.449]
[1749698466228,1.06977778,2749.6,2749.4,0.00545167]
[1749698466229,4.27757778,2749.6,2749.4,0.00545167]
[1749698466427,1.22315167,2749.9,2749.4,0.00545167]
[1749698466428,1.06977778,2749.5,2749.4,0.00545167]
[1749698467128,1.06977778,2749.5,2749.4,0.73275167]
[1749698467535,3.21325167,2749.9,2749.4,22.00145167]
[1749698467726,3.21325167,2749.9,2749.5,30.5625]
[1749698468032,3.21325167,2749.9,2749.7,0.72721]
[1749698468231,3.21325167,2749.9,2749.8,21.7]
[1749698468532,3.21325167,2749.9,2749.8,22.42719]
[1749698468829,0.5454,2750.1,2750.0,0.72714]
[1749698469031,0.5454,2750.1,2750.0,3.93494]
[1749698469230,0.5454,2750.1,2750.0,8.93494]
[1749698469627,0.5454,2750.1,2750.0,44.73494]
[1749698469831,0.5454,2750.1,2750.0,73.92894]
[1749698470128,0.00545167,2750.3,2750.2,0.72709]
[1749698470330,3.2078,2750.7,2750.6,0.72698]
[1749698470527,3.2078,2750.7,2750.6,29.89798]
[1749698471031,3.2078,2750.7,2750.6,70.69798]
[1749698471532,3.2078,2750.7,2750.6,40.8]
[1749698471728,3.93476,2750.7,2750.6,29.137]
[1749698472038,3.93476,2750.7,2750.6,29.122]
[1749698472039,3.2078,2750.7,2750.6,29.122]
[1749698473037,4.482,2750.7,2750.6,21.541]
[1749698473231,5.20896,2750.7,2750.6,21.541]
[1749698473436,4.482,2750.7,2750.6,21.497]
[1749698473635,5.20896,2750.7,2750.6,21.497]
[1749698474835,4.482,2750.7,2750.6,21.439]
[1749698475025,0.72701,2750.5,2750.4,21.994]
[1749698475233,0.72701,2750.5,2750.4,43.416]
[1749698475733,6.1958,2750.5,2750.0,7.342]
[1749698475943,3.2078,2750.1,2749.8,7.342]
[1749698476138,1.92294,2750.0,2749.9,21.394]
[1749698476336,1.1958,2750.0,2749.9,22.12117]
[1749698476829,1.1958,2750.0,2749.8,7.342]
[1749698476830,0.72727,2749.5,2749.4,0.00545167]
[1749698477034,3.93507,2749.5,2749.4,21.37945167]
[1749698477236,3.2078,2749.5,2749.4,21.38745167]
[1749698477738,3.93507,2749.5,2749.4,0.00545167]
[1749698478036,10.17977,2749.5,2749.4,0.00545167]
[1749698482046,0.72735,2749.2,2749.1,21.214]
[1749698482340,3.93515,2749.2,2749.1,21.214]
[1749698482638,0.72741,2749.0,2748.9,7.343]
[1749698482838,0.72741,2749.0,2748.9,28.535]
[1749698484140,0.00545167,2749.2,2749.0,0.72739]
[1749698484333,0.00545167,2749.2,2749.1,0.72738]
[1749698484537,0.00545167,2749.2,2749.1,29.21538]
[1749698485240,0.00545167,2749.2,2749.1,28.98438]
[1749698485442,3.21325167,2749.2,2749.1,28.95238]
[1749698485638,3.21325167,2749.2,2749.1,0.72738]
[1749698485840,3.21325167,2749.2,2749.1,28.93138]
[1749698487543,0.00545167,2749.2,2749.1,33.93138]
[1749698487843,0.00545167,2749.2,2749.1,30.11488]
[1749698488044,0.00545167,2749.2,2749.1,35.11488]
[1749698488245,3.2078,2749.5,2749.4,0.7273]
[1749698488445,3.93498,2749.9,2749.6,0.72724]
[1749698488646,3.2078,2749.9,2749.7,28.128]
[1749698489341,3.2078,2749.9,2749.8,41.52719]
[1749698489839,0.00545167,2750.1,2750.0,0.72714]
[1749698490040,0.00545167,2750.1,2750.0,21.67314]
[1749698490242,3.2078,2750.5,2750.4,0.72703]
[1749698490438,3.2078,2750.5,2750.4,28.76903]
[1749698490839,3.93482,2750.5,2750.4,28.033]
[1749698491248,3.93482,2750.5,2750.2,40.80545167]
[1749698491545,1.2513,2750.4,2750.3,28.022]
[1749698491742,1.97835,2750.4,2750.3,28.014]
[1749698491940,1.97835,2750.4,2750.2,40.80545167]
[1749698491941,0.72706,2750.3,2750.2,40.80545167]
[1749698492149,1.97836,2750.3,2750.2,28.00745167]
[1749698492439,1.97836,2750.3,2750.2,27.99745167]
[1749698492835,1.2513,2750.3,2750.2,27.99745167]
[1749698493239,1.2513,2750.3,2750.2,28.72454167]
[1749698493549,1.2513,2750.3,2750.2,0.73254167]
[1749698493738,1.2513,2750.3,2750.2,28.70354167]
[1749698494348,3.2078,2750.5,2750.4,0.72703]
[1749698494543,3.2078,2750.5,2750.4,21.54403]
[1749698495347,3.2078,2751.4,2750.5,0.72701]
[1749698495549,0.72691,2750.9,2750.6,27.648]
[1749698495848,0.72691,2750.9,2750.6,28.37497]
[1749698496041,3.2078,2750.8,2750.2,0.00545167]
[1749698496241,0.72705,2750.4,2750.3,27.625]
[1749698496446,0.72703,2750.4,2750.3,27.625]
[1749698496646,0.72706,2750.3,2750.2,0.00545167]
[1749698496847,0.72706,2750.3,2750.2,27.62045167]
[1749698497146,5.0,2750.3,2749.5,6.886]
[1749698497449,0.72721,2749.8,2749.6,20.709]
[1749698497645,3.2078,2750.1,2749.6,20.709]
[1749698497852,0.6183,2750.2,2750.1,0.72711]
[1749698498050,4.8701,2750.6,2750.1,27.575]
[1749698498255,0.72708,2750.3,2750.1,28.30211]
[1749698498466,0.72704,2750.4,2750.1,27.575]
[1749698498649,4.8701,2750.6,2750.1,27.575]
[1749698498845,4.8701,2750.6,2749.9,0.00545167]
[1749698499051,0.72706,2750.3,2750.2,6.885]
[1749698499958,0.72714,2750.0,2749.9,0.00545167]
[1749698500251,0.72714,2750.0,2749.9,20.62645167]
[1749698500861,3.93494,2750.0,2749.9,20.60945167]
[1749698501351,3.93494,2750.0,2749.9,0.00545167]
[1749698501651,3.93494,2750.0,2749.9,20.60945167]
[1749698502654,3.93494,2750.0,2749.9,0.00545167]
[1749698502849,1.81793,2749.9,2749.3,6.886]
[1749698503055,0.72727,2749.5,2749.4,20.537]
[1749698504163,1.99617,2749.5,2749.4,20.537]
[1749698504457,0.72733,2749.3,2749.2,0.00545167]
[1749698504755,0.72733,2749.3,2749.2,27.37745167]
[1749698505054,0.72733,2749.3,2749.2,20.48145167]
[1749698505358,0.72733,2749.3,2749.2,0.00545167]
[1749698505553,0.72733,2749.3,2749.2,20.46245167]
[1749698506149,0.72733,2749.3,2749.2,0.00545167]
[1749698506358,3.93513,2749.3,2749.2,20.43445167]
[1749698506661,3.93513,2749.3,2749.2,1.67e-06]
[1749698506662,8.93513,2749.3,2749.2,1.67e-06]
[1749698509956,3.93513,2749.3,2749.2,1.67e-06]
[1749698510358,8.93513,2749.3,2749.2,1.67e-06]
[1749698511860,15.59313,2749.3,2749.2,1.67e-06]
[1749698512364,8.93513,2749.3,2749.2,1.67e-06]
[1749698515761,10.00313441,2749.3,2749.2,1.67e-06]
[1749698516564,9.27580441,2749.3,2747.9,28.654]
[1749698516763,3.2078,2748.4,2747.9,28.654]
[1749698517165,3.2078,2748.4,2747.9,21.995]
[1749698517668,3.21325167,2748.4,2747.9,29.38714167]
[1749698517869,3.21325167,2748.4,2747.9,28.65945167]
[1749698518065,3.21325167,2748.4,2748.3,0.72759]
[1749698518368,3.21325167,2748.4,2748.0,1.2183]
[1749698518369,0.00545167,2748.4,2748.0,1.2183]
[1749698518559,0.00545167,2748.4,2748.3,0.72759]
[1749698519760,0.00545167,2748.4,2748.0,1.2183]
[1749698520165,0.73303167,2748.4,2748.2,0.72762]
[1749698520570,0.00545167,2748.4,2748.0,1.2183]
[1749698520875,0.72766,2748.1,2747.9,29.16315167]
[1749698521173,0.00545167,2748.4,2748.3,0.72759]
[1749698521367,0.00545167,2748.4,2748.3,3.93539]
[1749698521769,0.00545167,2748.4,2748.3,0.72759]
[1749698522571,0.29645167,2748.4,2748.3,0.72759]
[1749698522768,0.29645167,2748.4,2748.0,6.30947]
[1749698522769,0.29645167,2748.4,2748.0,4.4903]
[1749698522968,0.72764,2748.1,2748.0,1.2825]
[1749698523174,0.7276,2748.3,2748.1,0.72764]
[1749698523369,0.29645167,2748.4,2748.2,0.72762]
[1749698523568,5.02678,2748.3,2747.0,3.2078]
[1749698523768,1.81951,2747.5,2747.0,3.2078]
[1749698524066,3.2078,2747.4,2746.8,0.6265]
[1749698524275,3.2078,2747.4,2746.9,21.6987]
[1749698524574,0.72789,2747.2,2746.9,21.6987]
[1749698524776,0.72793,2747.0,2746.9,21.70415167]
[1749698525081,0.72793,2747.0,2746.9,1.21515167]
[1749698525270,3.2078,2747.1,2746.9,0.00545167]
[1749698525466,3.93573,2747.1,2746.9,0.00545167]
[1749698525769,3.2078,2747.2,2746.9,0.00545167]
[1749698525971,3.2078,2747.5,2746.9,3.21325167]
[1749698526165,3.2078,2747.5,2747.0,7.9097]
[1749698526368,5.0761,2748.0,2747.4,0.72783]
[1749698526677,3.2078,2747.9,2747.1,20.426]
[1749698526873,0.72783,2747.4,2747.1,0.72791]
[1749698527067,0.72782,2747.5,2747.2,7.42787]
[1749698527272,0.72782,2747.5,2747.2,0.72787]
[1749698527671,3.2078,2747.6,2747.1,6.7]
[1749698527973,3.93559,2747.6,2747.3,0.72783]
[1749698528174,3.2078,2747.6,2747.2,1.96898]
[1749698528374,0.7278,2747.5,2747.2,1.96898]
[1749698528585,3.2078,2747.6,2747.2,1.2411]
[1749698528785,3.2078,2747.3,2747.0,6.7]
[1749698528979,0.72778,2747.6,2747.0,7.9411]
[1749698529181,0.72782,2747.5,2747.0,7.9411]
[1749698529384,3.2078,2747.7,2747.1,0.72789]
[1749698529583,0.72781,2747.5,2747.2,1.2607]
[1749698529784,3.2078,2747.7,2747.2,1.2607]
[1749698529988,0.72783,2747.4,2747.2,1.2607]
[1749698530289,3.2078,2747.7,2747.0,6.7]
[1749698530490,0.72787,2747.3,2747.1,1.2607]
[1749698530689,0.72782,2747.5,2747.2,0.72786]
[1749698530886,0.72779,2747.6,2747.1,1.2607]
[1749698531183,0.72778,2747.6,2747.4,0.72781]
[1749698531384,0.72781,2747.5,2747.3,0.72784]
[1749698531883,3.2078,2747.7,2747.2,26.997]
[1749698532089,0.5949,2748.0,2747.7,0.72773]
[1749698532090,3.8027,2748.0,2747.7,0.72773]
[1749698532282,0.72783,2747.4,2747.3,2.5053]
[1749698532481,3.8027,2748.0,2747.5,0.7278]
[1749698532482,1.1967,2747.9,2747.5,0.7278]
[1749698532682,3.8027,2748.0,2747.6,0.72777]
[1749698532881,0.6363,2748.3,2747.3,1.937]
[1749698532882,3.2078,2748.3,2747.7,3.2078]
[1749698533081,0.29645167,2748.4,2747.8,28.2652]
[1749698533379,0.29645167,2748.4,2748.0,3.2078]
[1749698533579,3.2078,2749.0,2748.9,0.72741]
[1749698533789,3.2078,2749.6,2748.9,28.78158]
[1749698533992,3.2078,2749.6,2749.0,4.502]
[1749698534193,3.2078,2749.6,2749.1,40.8]
[1749698534488,0.5455,2749.5,2749.2,1.2942]
[1749698534885,1.2728,2749.5,2749.2,1.2942]
[1749698535188,0.5455,2749.5,2749.2,1.2942]
[1749698535382,0.5455,2749.5,2749.3,3.2078]
[1749698535585,0.5455,2749.5,2749.4,1.9506]
[1749698535784,0.5455,2749.5,2749.4,2.5576]
[1749698535980,0.5455,2749.5,2749.4,7.5576]
[1749698536180,3.2078,2750.4,2749.4,27.0813]
[1749698536389,3.93475,2750.8,2750.4,0.72702]
[1749698536586,0.72696,2750.7,2750.4,26.94]
[1749698536782,3.4986,2750.8,2750.2,3.2078]
[1749698536981,3.4986,2750.8,2750.3,6.699]
[1749698537184,0.29625167,2750.8,2750.5,3.2078]
[1749698537993,0.72698,2750.6,2750.5,3.2078]
[1749698538289,3.93478,2750.6,2749.8,41.416]
[1749698538480,3.2078,2750.5,2750.2,0.72707]
[1749698538686,0.29625167,2750.8,2750.1,0.7271]
[1749698538886,0.72702,2750.5,2750.1,0.72711]
[1749698539286,0.72706,2750.4,2750.0,3.2078]
[1749698539492,3.2078,2750.3,2750.1,26.626]
[1749698539693,0.72707,2750.3,2750.1,26.626]
[1749698539992,2.00862,2750.5,2750.1,26.626]
[1749698540289,3.2078,2750.6,2750.1,26.626]
[1749698540491,3.93479,2750.6,2750.3,0.72705]
[1749698540688,3.2078,2750.6,2750.1,26.626]
[1749698541093,3.9348,2750.6,2750.2,0.72707]
[1749698541491,3.2078,2750.6,2749.9,3.2078]
[1749698541691,1.2371,2750.5,2749.9,29.7678]
[1749698541891,3.2078,2750.6,2750.0,1.266]
[1749698542086,0.72702,2750.5,2750.2,0.72708]
[1749698542397,3.2078,2750.6,2750.0,1.266]
[1749698542688,3.93478,2750.6,2750.3,0.72705]
[1749698542997,3.2078,2750.6,2750.4,27.26602]
[1749698543191,3.2078,2750.6,2750.4,26.539]
[1749698543486,3.2078,2750.6,2750.5,0.72701]
[1749698543692,0.00545167,2750.8,2750.7,0.72696]
[1749698544091,0.2907,2751.2,2751.1,0.72685]
[1749698544290,0.2907,2751.2,2751.1,27.22685]
[1749698545194,0.00545167,2751.4,2751.2,0.7268]
[1749698545396,0.00545167,2751.4,2751.3,0.7268]
[1749698545795,0.00545167,2751.4,2751.1,29.7078]
[1749698545994,0.00545167,2751.4,2751.3,0.7268]
[1749698546495,0.00545167,2751.4,2751.2,1.2383]
[1749698546793,0.00545167,2751.4,2751.3,0.7268]
[1749698548088,0.00545167,2751.4,2751.3,27.1328]
[1749698548486,0.00545167,2751.4,2751.3,27.1168]
[1749698548690,0.00545167,2751.4,2751.3,27.0988]
[1749698549185,0.00545167,2751.4,2751.3,0.7268]
[1749698549391,0.00545167,2751.4,2751.3,26.352]
[1749698549593,0.00545167,2751.4,2751.3,6.466]
[1749698549798,0.00545167,2751.4,2751.3,26.344]